fUST/lending_fUST_20251109
["ID","MTS","AMOUNT","RATE_DAILY","PERIOD"]
[393442836,1762659955313,-725.24220229,0.00027139,2]
[393442837,1762659955332,-725.24220229,0.00027139,2]
[393442838,1762659955351,-725.24220229,0.00027139,2]
[393442839,1762659955371,-725.24220229,0.00027139,2]
[393442840,1762659955390,-725.24220229,0.00027139,2]
[393442841,1762659955409,-725.24220229,0.00027139,2]
[393442842,1762659955428,-725.24220229,0.00027139,2]
[393442843,1762659955448,-725.24220229,0.00027139,2]
[393442844,1762659955468,-725.24220229,0.00027139,2]
[393442845,1762659955491,-725.24220229,0.00027139,2]
[393442846,1762659955511,-725.24220229,0.00027139,2]
[393442847,1762659955533,-725.24220229,0.00027139,2]
[393442848,1762659955555,-714.88159942,0.00027139,2]
[393442849,1762659955573,-714.88159942,0.00027139,2]
[393442850,1762659955592,-714.88159942,0.00027139,2]
[393442851,1762659955611,-714.88159942,0.00027139,2]
[393442852,1762659955630,-714.88159942,0.00027139,2]
[393442853,1762659955649,-714.88159942,0.00027139,2]
[393442854,1762659955668,-714.88159942,0.00027139,2]
[393442855,1762659955688,-714.88159942,0.00027139,2]
[393442856,1762659955707,-714.88159942,0.00027139,2]
[393442857,1762659955728,-714.88159942,0.00027139,2]
[393442858,1762659955749,-714.88159942,0.00027139,2]
[393442859,1762659955768,-714.88159942,0.00027139,2]
[393442860,1762659955876,-714.88159942,0.00027139,2]
[393442861,1762659955895,-714.88159942,0.00027139,2]
[393442862,1762659955916,-714.88159942,0.00027139,2]
[393442863,1762659955935,-714.88159942,0.00027139,2]
[393442864,1762659955954,-714.88159942,0.00027139,2]
[393442865,1762659955973,-714.88159942,0.00027139,2]
[393442866,1762659955992,-714.88159942,0.00027139,2]
[393442867,1762659956011,-714.88159942,0.00027139,2]
[393442868,1762659956031,-714.88159942,0.00027139,2]
[393442869,1762659956051,-11729.81333324,0.0002714,2]
[393442870,1762660037135,-159.73372631,0.00026026,2]
[393442871,1762660037154,-287.52070735,0.00026026,2]
[393442872,1762660037173,-510.63677626,0.00026026,2]
[393442873,1762660037192,-270.8232502,0.00026099,2]
[393442874,1762660037215,-1063.63,0.00027039,2]
[393442875,1762660037235,-500.0,0.00027055,2]
[393442876,1762660037254,-615.27,0.00027135,10]
[393442877,1762660037275,-512.73,0.00027135,10]
[393442878,1762660037296,-427.27,0.00027135,10]
[393442879,1762660037319,-500.0,0.00027138,2]
[393442880,1762660037339,-503.41808006,0.0002714,2]
[393442918,1762660231880,-1050.09,0.00027017,2]
[393442921,1762660231892,-180.06532325,0.00027044,2]
[393442923,1762660231906,-8559.56170138,0.00027045,2]
[393442925,1762660231917,-2244.5230605,0.00027055,2]
[393442927,1762660231930,-500.0,0.00027139,2]
[393442930,1762660231942,-500.0,0.00027139,2]
[393442933,1762660231955,-339.35044117,0.00027139,2]
[393442935,1762660231968,-159.389568,0.0002715,7]
[393442937,1762660231981,-500.0,0.00027152,2]
[393442940,1762660231992,-507.88567602,0.00027152,2]
[393442942,1762660232005,-500.0,0.00027152,2]
[393442944,1762660232016,-500.0,0.00027152,2]
[393442945,1762660232027,-500.0,0.00027152,2]
[393442946,1762660232039,-446.438557,0.00027152,2]
[393442947,1762660232050,-357.34611852,0.00027154,2]
[393442948,1762660232060,-500.0,0.00027154,2]
[393442949,1762660232071,-315.0,0.00027154,2]
[393442950,1762660232083,-500.0,0.00027154,2]
[393442951,1762660232094,-336.65616063,0.00027154,2]
[393442952,1762660232106,-500.0,0.00027154,2]
[393442953,1762660232117,-500.0,0.00027154,2]
[393442954,1762660232128,-500.0,0.00027154,2]
[393442955,1762660232139,-500.0,0.00027154,2]
[393442956,1762660232148,-500.0,0.00027154,2]
[393442957,1762660232158,-500.0,0.00027154,2]
[393442958,1762660232168,-500.0,0.00027154,2]
[393442959,1762660232177,-500.0,0.00027154,2]
[393442960,1762660232188,-500.0,0.00027154,2]
[393442961,1762660232198,-528.43117933,0.00027154,2]
[393442962,1762660232208,-500.0,0.00027154,2]
[393442964,1762660232219,-500.0,0.00027154,2]
[393442966,1762660232231,-500.0,0.00027154,2]
[393442968,1762660232243,-500.0,0.00027154,2]
[393442970,1762660232256,-2866.8894292,0.00027155,2]
[393442973,1762660232269,-828.90536412,0.00027155,2]
[393442975,1762660232283,-10637.73152867,0.00027155,2]
[393443087,1762660237683,-356.06,0.00027145,10]
[393443090,1762660237694,-7703.94641071,0.00027155,2]
[393443095,1762660237738,-51515.69672226,0.00027155,2]
[393443098,1762660237750,-2578.45975813,0.00027155,2]
[393443327,1762660245993,-25193.02707891,0.00027155,2]
[393443328,1762660246003,-151.0,0.00027155,7]
[393443329,1762660246012,-153.598019,0.00027155,7]
[393443330,1762660246020,-296.72,0.00027155,10]
[393443331,1762660246029,-500.0,0.00027164,2]
[393443332,1762660246038,-336.80419458,0.00027164,2]
[393443333,1762660246047,-21080.65084274,0.00027165,2]
[393443336,1762660246135,-4040.12901524,0.00027165,2]
[393443339,1762660246189,-27298.05213256,0.00027165,2]
[393443345,1762660666236,11551.61162477,0.0003287,120]
[393443368,1762661197180,-199.74603944,0.0002462,2]
[393443369,1762661197202,-154.62148384,0.00025376,2]
[393443377,1762661225620,288.305455,0.00013699,2]
[393443378,1762661228341,-288.305455,0.00020187,2]
[393443379,1762661228363,-12.81466593,0.00025376,2]
[393443380,1762661228384,-314.61549102,0.00025916,2]
[393443381,1762661228404,-318.26625642,0.00025916,2]
[393443382,1762661228425,-1000.0,0.00025989,30]
[393443383,1762661228446,-288.305455,0.00026676,2]
[393443384,1762661228469,-1963.95767799,0.00026935,2]
[393443385,1762661228489,-5706.3744676,0.00026935,2]
[393443386,1762661228512,-1036.72,0.00027,2]
[393443387,1762661228533,-247.26,0.00027025,10]
[393443388,1762661228554,-206.05,0.00027025,10]
[393443389,1762661228574,-392.04790881,0.00027034,2]
[393443390,1762661228594,-500.0,0.00027034,2]
[393443391,1762661228614,-77837.99983843,0.00027035,2]
[393443392,1762661237071,-171.71,0.00027025,10]
[393443393,1762661237092,-66587.65313934,0.00027035,2]
[393443400,1762661282465,201.0,0.000321,120]
[393443449,1762661431929,-266.65963429,0.00023642,2]
[393443451,1762661431939,-150.0,0.00024424,2]
[393443453,1762661431949,-1718.46296825,0.00026955,2]
[393443454,1762661431962,-3804.24964506,0.00026955,2]
[393443455,1762661431971,-1023.53,0.00026983,2]
[393443456,1762661431980,-190.46769985,0.00027044,2]
[393443458,1762661431990,-264.33706803,0.00027045,2]
[393443496,1762661437869,-858.59,0.00027035,10]
[393443498,1762661437879,-1505.16796987,0.00027045,2]
[393443687,1762661440090,-10012.52413513,0.00027045,2]
[393444246,1762661446478,-8244.70960737,0.00027045,2]
[393444588,1762662506306,348.51666715,0.00015,2]
[393444650,1762662632096,-177.89156543,0.00023642,2]
[393444652,1762662632105,-168.10301466,0.00023982,2]
[393444654,1762662632115,-150.0,0.00025,2]
[393444656,1762662632123,-9.69581702,0.00026845,2]
[393444658,1762662632134,-1406.71259843,0.00026845,2]
[393444660,1762662632146,-87.24668176,0.00026845,2]
[393444662,1762662632155,-416.2083752,0.00026873,2]
[393444665,1762662632165,-2119.95805484,0.00026873,2]
[393444668,1762662632175,-151.0,0.000269,18]
[393444671,1762662632184,-186.91,0.00026925,10]
[393444674,1762662632193,-1200.0,0.00026933,2]
[393444678,1762662632202,-352.71146422,0.00026934,2]
[393444680,1762662632211,-300.0,0.00026934,2]
[393444684,1762662632220,-500.0,0.00026934,2]
[393444703,1762662632335,-215.02097106,0.00026935,2]
[393444735,1762662637986,-5462.17959581,0.00026935,2]
[393444741,1762662638043,-157449.07867074,0.00026935,2]
[393444782,1762662646362,-342.55454446,0.00026935,2]
[393444783,1762662646423,-262.08367599,0.00026935,2]
[393444784,1762662646435,-375.17554762,0.00026935,2]
[393444785,1762662646485,-15039.4532902,0.00026935,2]
[393444786,1762662646651,-2415.93100155,0.00026935,2]
[393444787,1762662832029,199.745843,0.00036814,60]
[393444814,1762663758114,-177.98046676,0.00023642,2]
[393444815,1762663758136,-151.94257066,0.00024402,2]
[393444816,1762663758163,-16.72014445,0.00024402,2]
[393444864,1762663832411,-160.0,0.00025534,2]
[393444866,1762663832421,-429.00250001,0.00026,2]
[393444868,1762663832431,-1867.61425241,0.00026724,2]
[393444870,1762663832440,-1690.77762002,0.00026724,2]
[393444872,1762663832450,-151.0,0.000268,20]
[393444874,1762663832460,-300.0,0.00026804,2]
[393444875,1762663832469,-1200.0,0.00026804,2]
[393444877,1762663832478,-854.17,0.00026805,10]
[393444879,1762663832488,-300.0,0.00026812,2]
[393444881,1762663832497,-300.0,0.00026812,2]
[393444883,1762663832506,-175.11054612,0.00026813,2]
[393444884,1762663832515,-472.95778708,0.00026813,2]
[393444886,1762663832524,-500.0,0.00026813,2]
[393444888,1762663832533,-500.0,0.00026813,2]
[393444890,1762663832542,-1666.20509777,0.00026814,2]
[393444892,1762663832553,-258.22366975,0.00026814,2]
[393445176,1762663844540,-1574.66450184,0.00026814,2]
[393445179,1762663846635,-441.38932044,0.00026814,2]
[393445180,1762663846646,-4319.9089556,0.00026814,2]
[393445181,1762663846659,-3504.42696805,0.00026814,2]
[393445182,1762663846690,-2551.31570217,0.00026814,2]
[393445183,1762663846701,-7648.68429783,0.00026814,2]
[393445184,1762663846711,-1212.0,0.00026814,2]
[393445190,1762663955334,500.0,0.00036815,60]
[393445191,1762663955598,500.0,0.00036815,60]
[393445192,1762663955861,500.0,0.00036815,60]
[393445193,1762663956439,500.0,0.00036815,60]
[393445194,1762663956678,500.0,0.00036815,60]
[393445195,1762663956926,500.0,0.00036815,60]
[393445196,1762663957278,500.0,0.00036815,60]
[393445197,1762663957405,500.0,0.00036815,60]
[393445198,1762663957643,500.0,0.00036815,60]
[393445199,1762663957907,500.0,0.00036815,60]
[393445200,1762663958152,500.0,0.00036815,60]
[393445201,1762663958395,500.0,0.00036815,60]
[393445202,1762663958677,500.0,0.00036815,60]
[393445203,1762663958940,500.0,0.00036815,60]
[393445204,1762663959182,500.0,0.00036815,60]
[393445205,1762663959427,500.0,0.00036815,120]
[393445206,1762663959659,500.0,0.00036815,120]
[393445207,1762663959899,500.0,0.00036815,120]
[393445208,1762663960141,500.0,0.00036815,120]
[393445209,1762663960383,509.61234292,0.00036815,120]
[393445210,1762664138308,271.113309,0.00013699,2]
[393445235,1762664347775,308.88,0.00032877,120]
[393445246,1762664759108,-271.113309,0.00020187,2]
[393445247,1762664759129,-16.96233612,0.00021341,2]
[393445248,1762664801100,-133.03766388,0.00021341,2]
[393445249,1762664801122,-173.75427017,0.00023341,2]
[393445250,1762664801143,-47.57558923,0.00024398,2]
[393445251,1762664907640,3213.0,0.00032877,120]
[393445254,1762664960111,-156.78731257,0.00023178,2]
[393445255,1762664960131,-133.99828743,0.0002384,5]
[393445609,1762665038411,-155.64128481,0.0002384,5]
[393445611,1762665038421,-394.27380584,0.00023882,5]
[393445612,1762665038431,-104.30154597,0.000248,4]
[393445613,1762665038443,-69.63257903,0.000248,4]
[393445614,1762665038452,-299.675769,0.00024886,2]
[393445615,1762665038463,-1541.93734918,0.00026615,2]
[393445616,1762665038474,-441.68942594,0.00026615,2]
[393445617,1762665038487,-685.49565408,0.00026615,2]
[393445618,1762665038496,-271.113309,0.00026676,2]
[393445619,1762665038506,-170.66,0.00026705,10]
[393445620,1762665038515,-120.10351241,0.00026705,10]
[393445637,1762665044644,-266.3832,0.00026705,10]
[393445641,1762665046738,-466.84328759,0.00026705,10]
[393445642,1762665046748,-360.57454054,0.00026713,2]
[393445643,1762665046758,-338.19704044,0.00026714,2]
[393445644,1762665046767,-616.38513143,0.00026714,2]
[393445645,1762665046794,-2351.21706706,0.00026714,2]
[393445646,1762665046805,-150152.59178251,0.00026714,2]
[393445647,1762665046850,-6665.90053118,0.00026714,2]
[393445648,1762665046861,-590.0,0.00026714,2]
[393445691,1762665772806,463.55046701,0.00036857,60]
[393445744,1762666146139,-157.0,0.00023,7]
[393445745,1762666146159,-180.963847,0.00024308,2]
[393445746,1762666146179,-325.73492461,0.00024308,2]
[393445747,1762666146198,-500.36556077,0.00024308,2]
[393445773,1762666232756,-640.22887835,0.00024307,2]
[393445779,1762666232819,-655.0,0.00024307,2]
[393445781,1762666232833,-2280.77112165,0.00024307,2]
[393445783,1762666232843,-1200.0,0.00024307,2]
[393445785,1762666232854,-399.90919747,0.00024307,2]
[393445787,1762666232865,-78.13966533,0.00024308,2]
[393445789,1762666232875,-246.92702128,0.00024308,2]
[393445791,1762666232887,-444.4686383,0.00024308,2]
[393445793,1762666232898,-789.37630163,0.00024308,2]
[393445795,1762666232908,-173.934126,0.000248,4]
[393445797,1762666232917,-300.0,0.0002485,2]
[393445799,1762666232927,-169.86889598,0.00024851,2]
[393445801,1762666232936,-160.0,0.00025269,2]
[393445803,1762666232946,-300.0,0.00025585,2]
[393445805,1762666232955,-300.0,0.00025585,2]
[393445807,1762666232964,-166.7374411,0.00025648,2]
[393445809,1762666232973,-173.934126,0.00025999,2]
[393445811,1762666232983,-361.562,0.00026072,12]
[393445813,1762666232992,-1178.04544267,0.00026486,2]
[393445815,1762666233001,-1349.19518048,0.00026493,2]
[393445817,1762666233013,-751.45672002,0.00026558,2]
[393445819,1762666233023,-501.73316405,0.00026573,2]
[393445821,1762666233033,-506.83060744,0.00026573,2]
[393445822,1762666233042,-483.29,0.00026594,10]
[393445824,1762666233052,-500.0,0.00026603,2]
[393445826,1762666233062,-151.0,0.00026603,2]
[393445828,1762666233072,-500.0,0.00026603,2]
[393445830,1762666233081,-250.22274502,0.00026603,2]
[393445832,1762666233091,-500.0,0.00026603,2]
[393445834,1762666233101,-500.0,0.00026603,2]
[393445836,1762666233110,-500.0,0.00026603,2]
[393445838,1762666233119,-500.0,0.00026603,2]
[393445840,1762666233129,-500.0,0.00026603,2]
[393445842,1762666233138,-500.0,0.00026603,2]
[393445844,1762666233148,-500.0,0.00026603,2]
[393445846,1762666233157,-500.0,0.00026603,2]
[393445848,1762666233167,-500.0,0.00026603,2]
[393445850,1762666233177,-500.0,0.00026603,2]
[393445852,1762666233187,-500.0,0.00026603,2]
[393445854,1762666233198,-397.05197935,0.00026603,2]
[393445856,1762666233207,-500.0,0.00026603,2]
[393445858,1762666233216,-500.0,0.00026603,2]
[393445860,1762666233226,-500.0,0.00026603,2]
[393445862,1762666233235,-500.0,0.00026603,2]
[393445864,1762666233244,-500.0,0.00026603,2]
[393445866,1762666233256,-500.0,0.00026603,2]
[393445868,1762666233268,-446.11116814,0.00026603,2]
[393445871,1762666233280,-500.0,0.00026603,2]
[393445873,1762666233293,-500.0,0.00026603,2]
[393445876,1762666233306,-500.0,0.00026603,2]
[393445878,1762666233319,-500.0,0.00026603,2]
[393445880,1762666233330,-500.0,0.00026603,2]
[393445882,1762666233340,-500.0,0.00026603,2]
[393445884,1762666233350,-500.0,0.00026603,2]
[393445886,1762666233363,-500.0,0.00026603,2]
[393445888,1762666233374,-203.61289089,0.00026603,2]
[393445916,1762666238580,-296.38710911,0.00026603,2]
[393445918,1762666238591,-500.0,0.00026603,2]
[393445920,1762666238603,-228.22140004,0.00026603,2]
[393445922,1762666238616,-271.77859996,0.00026603,2]
[393445925,1762666238628,-89.04647423,0.00026603,2]
[393445927,1762666238643,-410.95352577,0.00026603,2]
[393445929,1762666238655,-500.0,0.00026603,2]
[393445931,1762666238667,-500.0,0.00026603,2]
[393445934,1762666238678,-500.0,0.00026603,2]
[393445936,1762666238688,-500.0,0.00026603,2]
[393445938,1762666238700,-500.0,0.00026603,2]
[393445940,1762666238712,-500.0,0.00026603,2]
[393445942,1762666238724,-500.0,0.00026603,2]
[393445944,1762666238736,-442.22490623,0.00026603,2]
[393445947,1762666238747,-500.0,0.00026603,2]
[393445949,1762666238759,-153.036845,0.00026604,7]
[393445951,1762666238772,-151.0,0.00026604,7]
[393445953,1762666238783,-151.0,0.00026604,7]
[393445955,1762666238795,-212.82426895,0.00026604,7]
[393445957,1762666238805,-151.0,0.00026604,7]
[393445959,1762666238816,-500.0,0.00026604,2]
[393445962,1762666238829,-500.0,0.00026604,2]
[393445964,1762666238840,-500.0,0.00026604,2]
[393445966,1762666238851,-500.0,0.00026604,2]
[393445968,1762666238864,-500.0,0.00026604,2]
[393445970,1762666238875,-500.0,0.00026604,2]
[393445973,1762666238886,-500.0,0.00026604,2]
[393445975,1762666238899,-500.0,0.00026604,2]
[393445977,1762666238912,-500.0,0.00026604,2]
[393445979,1762666238924,-500.0,0.00026604,2]
[393445981,1762666238937,-500.0,0.00026604,2]
[393445984,1762666238949,-523.19126933,0.00026604,2]
[393445986,1762666238961,-172.630763,0.00026604,7]
[393445988,1762666238974,-151.0,0.00026604,7]
[393445991,1762666238985,-151.0,0.00026604,7]
[393445993,1762666238997,-160.976494,0.00026604,7]
[393445995,1762666239009,-171.370662,0.00026604,7]
[393445997,1762666239022,-168.526475,0.00026604,7]
[393445999,1762666239033,-162.219895,0.00026604,7]
[393446001,1762666239043,-159.06436,0.00026604,7]
[393446003,1762666239054,-169.251691,0.00026604,7]
[393446006,1762666239064,-202.334663,0.00026604,7]
[393446008,1762666239075,-151.0,0.00026604,7]
[393446010,1762666239085,-151.0,0.00026604,7]
[393446012,1762666239095,-151.0,0.00026604,7]
[393446014,1762666239106,-151.0,0.00026604,7]
[393446016,1762666239119,-155652.3805572,0.00026604,2]
[393446022,1762666239172,-31356.58098584,0.00026604,2]
[393446086,1762666243892,-528.0,0.00026593,2]
[393446087,1762666243905,-497991.03845696,0.00026604,2]
[393446088,1762666243916,-151.0,0.00026658,2]
[393446089,1762666243926,-500.0,0.00026673,2]
[393446090,1762666243936,-500.0,0.00026673,2]
[393446091,1762666243946,-2672.1730999,0.00026691,2]
[393446092,1762666243957,-337.92769161,0.00026703,2]
[393446093,1762666243967,-167.554277,0.00026704,7]
[393446094,1762666243978,-157.328911,0.00026704,7]
[393446095,1762666243988,-157.079352,0.00026704,7]
[393446096,1762666243999,-151.0,0.00026704,7]
[393446097,1762666244009,-154.582748,0.00026704,7]
[393446098,1762666244020,-161.662479,0.00026704,7]
[393446099,1762666244201,-200.70251198,0.00026713,2]
[393446100,1762666244217,-500.0,0.00026713,2]
[393446101,1762666244227,-336.80419458,0.00026713,2]
[393446102,1762666244238,-196.840827,0.00026714,7]
[393446103,1762666244248,-151.0,0.00026714,7]
[393446104,1762666244258,-523.31639805,0.00026714,2]
[393446105,1762666244268,-160.60457,0.00026714,7]
[393446106,1762666244278,-280.626443,0.00026714,7]
[393446107,1762666244289,-151.0,0.00026714,7]
[393446108,1762666244299,-197.885021,0.00026714,7]
[393446109,1762666244308,-151.0,0.00026714,7]
[393446110,1762666244318,-162.865606,0.00026714,7]
[393446111,1762666244328,-177.956083,0.00026714,7]
[393446112,1762666244338,-151.0,0.00026714,7]
[393446113,1762666244348,-151.0,0.00026714,7]
[393446114,1762666244364,-153.424421,0.00026724,7]
[393446115,1762666244374,-197.0,0.0002674,7]
[393446116,1762666244383,-166.0,0.00026764,3]
[393446117,1762666244393,-166.0,0.00026764,3]
[393446118,1762666244402,-151.0,0.00026764,3]
[393446119,1762666244412,-166.0,0.00026764,3]
[393446120,1762666244422,-332.0,0.00026764,3]
[393446121,1762666244432,-151.0,0.00026764,3]
[393446122,1762666244441,-332.0,0.00026764,3]
[393446123,1762666244451,-166.0,0.00026764,3]
[393446124,1762666244461,-151.0,0.00026764,3]
[393446125,1762666244470,-166.0,0.00026764,3]
[393446126,1762666244480,-172.0,0.00026764,3]
[393446127,1762666244489,-332.0,0.00026764,3]
[393446128,1762666244499,-151.0,0.00026764,3]
[393446129,1762666244508,-166.0,0.00026764,3]
[393446130,1762666244518,-332.0,0.00026764,3]
[393446131,1762666244528,-151.0,0.00026764,3]
[393446132,1762666244537,-332.0,0.00026764,3]
[393446133,1762666244547,-151.0,0.00026764,3]
[393446134,1762666244556,-332.0,0.00026764,3]
[393446135,1762666244565,-151.0,0.00026764,3]
[393446136,1762666244574,-339.84459423,0.00026764,3]
[393446137,1762666244583,-151.0,0.00026764,3]
[393446138,1762666244593,-151.0,0.00026764,3]
[393446139,1762666244602,-151.0,0.00026764,3]
[393446140,1762666244612,-151.0,0.00026764,3]
[393446141,1762666244621,-151.0,0.00026764,3]
[393446142,1762666244630,-151.0,0.00026764,3]
[393446143,1762666244639,-151.0,0.00026764,3]
[393446144,1762666244648,-151.0,0.00026764,3]
[393446145,1762666244658,-151.0,0.00026764,3]
[393446146,1762666244668,-151.0,0.00026764,3]
[393446147,1762666244677,-151.0,0.00026764,3]
[393446148,1762666244687,-151.0,0.00026764,3]
[393446149,1762666244696,-151.0,0.00026764,3]
[393446150,1762666244705,-151.0,0.00026764,3]
[393446151,1762666244715,-151.0,0.00026764,3]
[393446152,1762666244724,-151.0,0.00026764,3]
[393446153,1762666244733,-151.0,0.00026764,3]
[393446154,1762666244742,-151.0,0.00026764,3]
[393446155,1762666244751,-151.0,0.00026764,3]
[393446156,1762666244760,-151.0,0.00026764,3]
[393446157,1762666244769,-151.0,0.00026764,3]
[393446158,1762666244779,-151.0,0.00026764,3]
[393446159,1762666244788,-151.0,0.00026764,3]
[393446160,1762666244798,-151.0,0.00026764,3]
[393446161,1762666244807,-422.39679512,0.00026773,2]
[393446162,1762666244816,-151.0,0.000268,10]
[393446163,1762666244829,-151.0,0.000268,15]
[393446164,1762666244838,-151.0,0.000268,13]
[393446165,1762666244847,-151.0,0.000268,19]
[393446166,1762666244857,-151.0,0.000268,12]
[393446167,1762666244868,-151.0,0.000268,13]
[393446168,1762666244878,-151.0,0.00026821,3]
[393446169,1762666244887,-151.0,0.00026821,3]
[393446170,1762666244898,-4904.2158634,0.00026893,2]
[393446171,1762666244907,-151.0,0.00026893,7]
[393446172,1762666244916,-4160.34575641,0.00026897,2]
[393446173,1762666244926,-151.0,0.00026912,7]
[393446174,1762666244935,-263.062002,0.00026912,7]
[393446175,1762666244944,-273.46871091,0.00026934,2]
[393446176,1762666244954,-500.0,0.00026973,2]
[393446177,1762666244963,-1010.5,0.00026984,2]
[393446178,1762666244973,-1708.23953616,0.0002699,2]
[393446179,1762666244982,-169.998503,0.0002699,7]
[393446180,1762666244992,-852.63,0.00027044,2]
[393446181,1762666245001,-168.0,0.0002705,2]
[393446182,1762666245011,-168.0,0.00027076,2]
[393446183,1762666245020,-197.0,0.00027102,2]
[393446184,1762666245030,-197.0,0.00027175,2]
[393446185,1762666245039,-1010.71531016,0.00027221,2]
[393446186,1762666245048,-1000.0,0.00027221,2]
[393446187,1762666245058,-197.0,0.00027241,2]
[393446188,1762666245067,-197.0,0.00027244,2]
[393446189,1762666245076,-197.0,0.00027273,2]
[393446190,1762666245086,-197.0,0.00027337,2]
[393446191,1762666245095,-197.0,0.00027361,2]
[393446192,1762666245104,-1114.84,0.000274,2]
[393446193,1762666245112,-167.282364,0.000274,31]
[393446194,1762666245122,-506.68721451,0.00027521,5]
[393446195,1762666245132,-312.0,0.000277,2]
[393446196,1762666245142,-1500.0,0.00027768,5]
[393446197,1762666245151,-385.15,0.000278,7]
[393446198,1762666245160,-6322.64377639,0.00027802,2]
[393446199,1762666245170,-197.0,0.00027833,2]
[393446200,1762666245180,-197.0,0.0002792,7]
[393446201,1762666245190,-198.0,0.00027993,7]
[393446202,1762666245200,-177.31522776,0.00028055,27]
[393446203,1762666245209,-197.0,0.00028133,7]
[393446204,1762666245219,-198.0,0.00028138,2]
[393446205,1762666245229,-168.0,0.00028151,2]
[393446206,1762666245239,-168.0,0.0002821,2]
[393446207,1762666245248,-500.0,0.00028248,10]
[393446208,1762666245258,-500.0,0.00028248,10]
[393446209,1762666245267,-2021.0,0.00028269,2]
[393446210,1762666245277,-459.1821932,0.00028316,5]
[393446211,1762666245287,-178.3364277,0.00028338,4]
[393446212,1762666245297,-197.0,0.00028666,2]
[393446213,1762666245307,-168.0,0.00028892,2]
[393446214,1762666245316,-197.0,0.00028967,2]
[393446215,1762666245326,-168.0,0.00028974,2]
[393446216,1762666245336,-500.0,0.00029,7]
[393446217,1762666245346,-197.0,0.00029067,7]
[393446218,1762666245356,-168.0,0.00029091,2]
[393446219,1762666245365,-168.0,0.00029153,2]
[393446220,1762666245375,-173.934126,0.00029196,10]
[393446221,1762666245384,-1000.0,0.00029366,7]
[393446222,1762666245394,-168.0,0.00029388,2]
[393446223,1762666245403,-3031.51,0.00029554,2]
[393446224,1762666245413,-10054.75021979,0.000299,2]
[393446225,1762666245423,-256.72,0.0003,5]
[393446226,1762666245432,-1114.84,0.0003,2]
[393446227,1762666245442,-500.0,0.0003,30]
[393446228,1762666245451,-1015.97,0.0003,2]
[393446229,1762666245461,-2215.42490563,0.0003,2]
[393446239,1762666296269,287.52,0.00032876,120]
[393446280,1762667142820,257.274117,0.00013699,2]
[393446283,1762667348123,-168.0,0.00018867,2]
[393446284,1762667348146,-151.71554635,0.00019058,2]
[393446285,1762667348167,-240.87025672,0.00019058,2]
[393446286,1762667348194,-197.34107802,0.00019058,2]
[393446287,1762667348216,-170.73456761,0.00019623,2]
[393446288,1762667348237,-257.274117,0.00020187,2]
[393446289,1762667348256,-145.07355755,0.00022,2]
[393446290,1762667355087,-9.92644245,0.00022,2]
[393446291,1762667355105,-146.61260933,0.00023014,7]
[393446292,1762667355130,-8.38739067,0.00023014,7]
[393446298,1762667368279,-1428.68803646,0.00024562,2]
[393446299,1762667368300,-240.87025672,0.0002481,2]
[393446300,1762667368324,-999.0,0.00026246,2]
[393446301,1762667368344,-1180.54578292,0.00026395,2]
[393446302,1762667368365,-500.97114668,0.00026395,2]
[393446303,1762667368384,-506.0,0.00026494,2]
[393446304,1762667368405,-506.0,0.00026494,2]
[393446305,1762667368425,-506.0,0.00026494,2]
[393446306,1762667368445,-506.0,0.00026494,2]